bitfinex/quotes_BTCUSD_20250410
["timestamp","ask_amount","ask_price","bid_price","bid_amount"]
[1744301298984,0.0001668,79082.0,79081.0,0.60555]
[1744301299159,0.0101668,79082.0,79081.0,0.74699843]
[1744301299448,0.0001668,79082.0,79081.0,0.74699843]
[1744301299996,8e-07,79082.0,79081.0,0.74699843]
[1744301300200,0.0002678,79100.0,79099.0,0.352642]
[1744301300201,6e-07,79100.0,79099.0,0.352642]
[1744301300390,6e-07,79100.0,79099.0,2.08833043]
[1744301301327,0.0001,79102.0,79101.0,0.36718285]
[1744301301328,6e-07,79102.0,79101.0,0.36718285]
[1744301301542,6e-07,79102.0,79101.0,0.49409043]
[1744301302649,6e-07,79102.0,79101.0,0.12690758]
[1744301302985,0.0100006,79102.0,79101.0,0.12690758]
[1744301303187,0.0100006,79102.0,79101.0,0.13954958]
[1744301303759,0.0100006,79102.0,79101.0,0.15409043]
[1744301303913,0.0100006,79102.0,79099.0,0.00042318]
[1744301304119,0.265486,79100.0,79099.0,0.00042318]
[1744301304330,0.252884,79088.0,79081.0,0.14455934]
[1744301304532,0.4,79087.0,79086.0,0.252887]
[1744301304740,0.02274718,79100.0,79086.0,0.252887]
[1744301304741,0.03394516,79115.0,79112.0,0.252804]
[1744301304940,0.17,79115.0,79113.0,0.12690758]
[1744301305140,0.17,79115.0,79114.0,0.012639]
[1744301305376,0.17,79115.0,79114.0,0.13954658]
[1744301305981,0.17,79115.0,79114.0,0.13996991]
[1744301306177,0.17,79115.0,79114.0,0.12733091]
[1744301306384,0.182639,79115.0,79114.0,0.00042333]
[1744301306597,0.182639,79115.0,79080.0,0.012645]
[1744301306598,0.012643,79089.0,79080.0,0.012645]
[1744301306767,0.012644,79088.0,79082.0,0.012645]
[1744301306963,0.012645,79081.0,79080.0,0.00042375]
[1744301307200,0.1099,79081.0,79080.0,0.00042375]
[1744301307534,0.1099,79081.0,79080.0,0.01306875]
[1744301307816,0.122545,79081.0,79080.0,0.00042375]
[1744301308260,0.1099,79081.0,79080.0,0.00042375]
[1744301309263,0.122545,79081.0,79080.0,0.00042375]
[1744301309456,0.122545,79081.0,79066.0,0.012647]
[1744301309457,0.252921,79076.0,79066.0,0.012647]
[1744301309596,0.445567,79076.0,79075.0,1.00042454]
[1744301309799,0.18,79076.0,79075.0,1.00042454]
[1744301310603,0.192646,79076.0,79075.0,1.00042454]
[1744301311256,0.18,79076.0,79075.0,1.00042454]
[1744301311427,0.192646,79076.0,79075.0,1.00042454]
[1744301311660,0.192646,79076.0,79075.0,1.00052454]
[1744301312633,0.18,79076.0,79075.0,1.00052454]
[1744301312998,0.192646,79076.0,79075.0,1.00052454]
[1744301313803,0.65955358,79076.0,79075.0,0.96926272]
[1744301314004,0.65955358,79076.0,79041.0,0.002]
[1744301314005,0.265671,79045.0,79041.0,0.002]
[1744301314131,0.192651,79045.0,79044.0,0.00076012]
[1744301314334,0.18,79045.0,79044.0,0.1276677]
[1744301314696,0.48,79045.0,79044.0,0.1276677]
[1744301314993,0.08,79045.0,79044.0,0.00076012]
[1744301315368,0.08,79045.0,79041.0,0.002]
[1744301315369,0.265681,79042.0,79041.0,0.002]
[1744301315576,0.265681,79042.0,79028.0,0.01332506]
[1744301315577,0.192651,79042.0,79028.0,0.01332506]
[1744301315749,0.192651,79042.0,79024.0,0.13191434]
[1744301315750,0.012653,79029.0,79024.0,0.13191434]
[1744301315933,0.18,79029.0,79024.0,0.38499834]
[1744301316132,0.18,79029.0,79027.0,0.253075]
[1744301316538,0.01135574,79028.0,79026.0,0.253078]
[1744301316763,0.19135574,79028.0,79025.0,0.253082]
[1744301316980,0.19135574,79028.0,79024.0,0.38499834]
[1744301316981,0.253083,79026.0,79024.0,0.13191434]
[1744301317155,0.19,79026.0,79024.0,0.13191434]
[1744301317491,0.19,79026.0,79025.0,0.012654]
[1744301318359,0.19,79026.0,79025.0,0.13956158]
[1744301319096,0.19,79026.0,79013.0,0.012656]
[1744301319302,0.19,79026.0,79025.0,0.265738]
[1744301319733,0.19,79026.0,79025.0,0.012654]
[1744301319905,0.19,79026.0,79025.0,0.13956158]
[1744301320308,0.19,79026.0,79025.0,0.49410243]
[1744301320966,0.00042415,79042.0,79041.0,0.265684]
[1744301321163,0.19042415,79042.0,79041.0,0.39259158]
[1744301321637,0.19042415,79042.0,79041.0,0.74713243]
[1744301322041,1.5e-07,79042.0,79041.0,0.74713243]
[1744301322659,0.01000015,79042.0,79041.0,0.46690758]
[1744301322882,0.01000015,79042.0,79041.0,0.47955858]
[1744301323318,0.01000015,79042.0,79041.0,0.49409943]
[1744301323604,1.5e-07,79042.0,79041.0,0.49409943]
[1744301324777,1.5e-07,79042.0,79041.0,0.12690758]
[1744301324778,0.01000015,79042.0,79041.0,0.12690758]
[1744301325287,0.01000015,79042.0,79037.0,0.253043]
[1744301325644,0.01000015,79042.0,79036.0,0.012652]
[1744301325645,0.01000015,79042.0,79041.0,0.265684]
[1744301325818,0.01000015,79042.0,79041.0,0.39259158]
[1744301326116,0.01000015,79042.0,79034.0,0.253055]
[1744301326117,0.012651,79040.0,79028.0,0.012653]
[1744301326315,0.26571,79033.0,79024.0,1.315054]
[1744301326518,0.253064,79032.0,79024.0,1.3024]
[1744301326680,0.012653,79031.0,79024.0,1.3024]
[1744301326873,0.172653,79031.0,79020.0,0.253099]
[1744301327096,0.172653,79031.0,79019.0,0.0003334]
[1744301327097,0.265755,79020.0,79019.0,0.0003334]
[1744301327298,0.425755,79020.0,79019.0,0.0003334]
[1744301329530,0.16,79020.0,79019.0,0.0003334]
[1744301329796,0.16,79020.0,79019.0,0.13989598]
[1744301329948,0.16,79020.0,79019.0,0.49443683]
[1744301330351,0.253001,79051.0,79019.0,0.49443683]
[1744301330352,0.0475,79070.0,79041.0,0.012651]
[1744301330558,0.012648,79063.0,79041.0,0.39259158]
[1744301330756,0.01000015,79042.0,79041.0,0.39259158]
[1744301331081,0.01000015,79042.0,79041.0,0.74713243]
[1744301331284,0.0464,79069.0,79068.0,0.265593]
[1744301331508,0.44964674,79090.0,79070.0,0.012647]
[1744301331509,0.012645,79078.0,79070.0,0.012647]
[1744301331696,0.012646,79076.0,79070.0,0.252938]
[1744301331902,0.422922,79076.0,79070.0,0.252938]
[1744301332151,0.422922,79076.0,79065.0,0.012647]
[1744301332152,0.012649,79055.0,79041.0,0.4176]
[1744301332298,0.44964674,79070.0,79048.0,0.01265]
[1744301332505,0.182647,79070.0,79060.0,0.012648]
[1744301332703,0.252954,79066.0,79061.0,0.252967]
[1744301332904,0.19,79066.0,79065.0,0.012647]
[1744301333225,0.19,79066.0,79064.0,0.252958]
[1744301333425,0.19,79066.0,79065.0,0.012647]
[1744301333986,0.19,79066.0,79065.0,0.15409543]
[1744301334184,0.19,79066.0,79065.0,0.49422216]
[1744301334551,0.0001678,79074.0,79073.0,0.62011685]
[1744301334734,0.0001678,79074.0,79073.0,0.74702443]
[1744301335347,0.0001678,79074.0,79073.0,0.73248358]
[1744301335556,0.0101678,79074.0,79073.0,0.74702443]
[1744301335980,0.2630948,79074.0,79073.0,0.12690758]
[1744301336156,0.0101678,79074.0,79073.0,0.12690758]
[1744301336357,0.0101678,79074.0,79073.0,0.13955358]
[1744301336934,0.0101678,79074.0,79073.0,0.39248358]
[1744301338103,0.252899,79083.0,79076.0,0.012646]
[1744301338314,0.16,79083.0,79077.0,0.12690758]
[1744301338510,0.412899,79083.0,79077.0,0.12690758]
[1744301338670,0.412899,79083.0,79077.0,0.13955258]
[1744301338880,0.16,79083.0,79082.0,0.352645]
[1744301339041,0.002,79099.0,79098.0,0.265492]
[1744301339246,0.022,79099.0,79098.0,0.39239958]
[1744301339452,0.022,79099.0,79092.0,0.29236]
[1744301339664,0.012642,79098.0,79092.0,0.29236]
[1744301339883,0.252866,79093.0,79092.0,0.29236]
[1744301340108,0.345509,79093.0,79092.0,0.29236]
[1744301340363,0.332866,79093.0,79092.0,0.29248673]
[1744301340485,0.345509,79093.0,79092.0,0.29248673]
[1744301341315,0.08,79093.0,79092.0,0.69944816]
[1744301341590,0.08,79093.0,79092.0,0.68490731]
[1744301341790,0.08,79093.0,79092.0,1.03944816]
[1744301341995,0.0001678,79106.0,79098.0,0.62003285]
[1744301342215,0.0001678,79106.0,79098.0,0.74694043]
[1744301342845,0.012641,79103.0,79098.0,0.46690758]
[1744301343065,0.012,79099.0,79098.0,0.47954958]
[1744301344275,0.012,79099.0,79098.0,0.49409043]
[1744301345303,0.012,79099.0,79098.0,0.12690758]
[1744301345728,0.012,79099.0,79098.0,0.39239958]
[1744301345871,0.012,79099.0,79098.0,0.40694043]
[1744301346070,0.012,79099.0,79098.0,0.74694043]
[1744301346855,0.002,79099.0,79098.0,0.74694043]
[1744301347060,8e-07,79106.0,79098.0,1.16454043]
[1744301347274,5e-07,79108.0,79107.0,0.62000385]
[1744301347463,5e-07,79108.0,79107.0,0.74691143]
[1744301347672,2e-07,79112.0,79111.0,0.605449]
[1744301347902,2e-07,79112.0,79111.0,0.74689743]
[1744301348221,2e-07,79112.0,79111.0,1.16449743]
[1744301348425,7e-07,79122.0,79121.0,0.61995585]
[1744301348621,7e-07,79122.0,79121.0,2.75846343]
[1744301349309,7e-07,79122.0,79121.0,2.77125414]
[1744301349509,8e-07,79132.0,79131.0,0.605382]
[1744301349720,8e-07,79132.0,79131.0,0.74683043]
[1744301349932,4.7e-07,79132.0,79131.0,0.74683043]
[1744301350288,0.0001676,79140.0,79139.0,0.61989485]
[1744301350289,7.7e-07,79140.0,79139.0,0.61989485]
[1744301350493,7.7e-07,79140.0,79139.0,0.74680243]
[1744301351285,0.002,79159.0,79158.0,0.605291]
[1744301351286,7.7e-07,79159.0,79158.0,0.605291]
[1744301351614,7.7e-07,79159.0,79158.0,2.34037943]
[1744301351815,7.7e-07,79159.0,79158.0,2.38867943]
[1744301352235,0.0001452,79182.0,79175.0,0.01263]
[1744301352436,0.0701452,79182.0,79176.0,0.12690758]
[1744301352592,0.26525,79171.0,79161.0,0.605278]
[1744301352793,0.12,79171.0,79166.0,0.252631]
[1744301353005,0.252623,79170.0,79162.0,0.12690758]
[1744301353331,0.07,79170.0,79167.0,0.252628]
[1744301353640,0.07,79170.0,79169.0,0.265255]
[1744301353851,0.07,79170.0,79169.0,0.39216258]
[1744301354216,0.07,79170.0,79169.0,0.73216258]
[1744301354638,0.0001452,79182.0,79181.0,0.605214]
[1744301354832,0.0001452,79182.0,79181.0,1.03862243]
[1744301354833,0.0101452,79182.0,79181.0,1.03862243]
[1744301355059,0.0001452,79182.0,79181.0,1.03862243]
[1744301356110,2e-07,79182.0,79181.0,1.04798557]
[1744301356543,2e-07,79182.0,79181.0,0.73212158]
[1744301356739,0.0100002,79182.0,79181.0,0.73212158]
[1744301357104,0.0100002,79182.0,79181.0,0.13953658]
[1744301357286,0.002,79189.0,79188.0,0.012628]
[1744301357488,0.002,79189.0,79188.0,0.73209858]
[1744301357793,0.0001676,79218.0,79206.0,0.605131]
[1744301357938,3e-07,79207.0,79206.0,1.03849943]
[1744301358148,0.0016879,79219.0,79218.0,0.352623]
[1744301358383,0.0016879,79219.0,79218.0,0.49407143]
[1744301358552,0.73620812,79230.0,79229.0,0.012621]
[1744301358724,0.89620812,79230.0,79229.0,0.39196058]
[1744301359327,0.89620812,79230.0,79229.0,0.68380058]
[1744301359769,0.90159655,79230.0,79229.0,0.68380058]
[1744301359976,0.90159655,79230.0,79229.0,0.39196058]
[1744301360186,0.90159655,79230.0,79218.0,0.252467]
[1744301360187,0.012622,79226.0,79218.0,0.252467]
[1744301360357,0.012622,79221.0,79207.0,0.29184]
[1744301360560,0.012623,79218.0,79208.0,0.12690758]
[1744301360738,0.09,79218.0,79211.0,0.265111]
[1744301360946,0.252479,79215.0,79211.0,0.12690758]
[1744301361149,0.00665908,79214.0,79213.0,0.252483]
[1744301361422,0.03,79214.0,79213.0,0.13953158]
[1744301361766,0.03,79214.0,79213.0,0.012624]
[1744301361981,0.012624,79208.0,79207.0,0.29184]
[1744301362180,0.08,79208.0,79207.0,0.29184]
[1744301362377,0.08,79208.0,79207.0,0.304465]
[1744301362580,0.078,79208.0,79207.0,0.304465]
[1744301362845,0.078,79208.0,79207.0,0.43137258]
[1744301363292,0.078,79208.0,79207.0,0.78591343]
[1744301363526,0.078,79208.0,79207.0,0.75874758]
[1744301363686,0.078,79208.0,79207.0,0.78591343]
[1744301363875,0.252502,79207.0,79206.0,0.00012673]
[1744301364078,0.47159496,79207.0,79206.0,0.00012673]
[1744301364281,0.265211,79182.0,79178.0,0.2918]
[1744301364527,0.16646813,79182.0,79181.0,0.00021915]
[1744301364772,0.17909713,79182.0,79181.0,0.00021915]
[1744301366265,0.16646813,79182.0,79181.0,0.00021915]
[1744301366471,0.17909713,79182.0,79181.0,0.00021915]
[1744301366810,0.16646813,79182.0,79181.0,0.00021915]
[1744301367551,0.17909713,79182.0,79181.0,0.00021915]
[1744301367755,0.16646813,79182.0,79181.0,0.00021915]
[1744301368776,0.16646813,79182.0,79181.0,0.13975573]
[1744301368983,0.16646813,79182.0,79181.0,0.48228164]
[1744301369220,0.252494,79210.0,79203.0,0.012625]
[1744301369424,0.252501,79208.0,79204.0,0.252511]
[1744301369618,0.43994513,79208.0,79202.0,0.012625]
[1744301369739,0.43994513,79208.0,79200.0,0.012626]
[1744301369740,0.012626,79200.0,79195.0,0.29176]
[1744301369959,0.252533,79198.0,79195.0,0.29176]
[1744301370199,0.252533,79198.0,79188.0,0.012628]
[1744301370200,0.012627,79193.0,79181.0,0.00021915]
[1744301370373,0.012629,79182.0,79181.0,0.00021915]
[1744301370580,0.212629,79182.0,79181.0,0.00021915]
[1744301370894,0.26394449,79182.0,79181.0,0.00021915]
[1744301371095,0.012632,79162.0,79161.0,0.002]
[1744301371274,0.012632,79162.0,79150.0,0.0001]
[1744301371275,0.265315,79151.0,79150.0,0.0001]
[1744301371634,0.12033845,79151.0,79150.0,0.00022697]
[1744301371837,0.52510883,79151.0,79150.0,0.00022697]
[1744301371981,0.79042383,79151.0,79150.0,0.00022697]
[1744301372619,0.78565345,79151.0,79150.0,0.00022697]
[1744301373745,0.12033845,79151.0,79150.0,0.13976855]
[1744301373886,0.12033845,79151.0,79150.0,0.00022697]
[1744301374299,0.01263,79171.0,79163.0,0.012632]
[1744301374653,0.392631,79167.0,79162.0,0.265276]
[1744301374858,0.14,79167.0,79164.0,0.26527]
[1744301375057,0.14,79167.0,79163.0,0.252643]
[1744301375254,0.14,79167.0,79165.0,0.265265]
[1744301375463,0.14,79167.0,79163.0,0.265268]
[1744301375634,0.14,79167.0,79166.0,0.252633]
[1744301375801,0.14,79167.0,79166.0,0.265264]
[1744301376007,0.152631,79167.0,79161.0,0.252648]
[1744301376201,0.14,79167.0,79162.0,0.012632]
[1744301376406,0.14,79167.0,79151.0,0.252678]
[1744301376407,0.252681,79152.0,79141.0,0.012635]
[1744301376663,0.252681,79152.0,79137.0,0.0003348]
[1744301376664,0.012634,79151.0,79137.0,0.0003348]
[1744301376876,0.012636,79138.0,79137.0,0.0003348]
[1744301377078,0.455359,79138.0,79137.0,0.00046185]
[1744301377444,0.455359,79138.0,79137.0,0.38009543]
[1744301377445,0.19,79138.0,79137.0,0.38009543]
[1744301377769,0.19,79138.0,79137.0,0.00046185]
[1744301378107,0.202636,79138.0,79137.0,0.00046185]
[1744301378266,0.270379,79132.0,79106.0,0.012641]
[1744301378610,0.57728658,79132.0,79131.0,0.00265428]
[1744301378790,0.57728658,79132.0,79100.0,0.012742]
[1744301378791,0.012641,79105.0,79100.0,0.0001]
[1744301378997,0.2528,79114.0,79108.0,0.252816]
[1744301379200,0.252761,79127.0,79115.0,0.012639]
[1744301379336,0.252761,79127.0,79124.0,0.012638]
[1744301379337,0.18,79127.0,79124.0,0.012638]
[1744301379549,0.18,79127.0,79126.0,0.012638]
[1744301379745,0.18,79127.0,79126.0,0.13954558]
[1744301380158,0.18,79127.0,79126.0,0.49408643]
[1744301380602,0.18,79127.0,79126.0,0.5029428]
[1744301380749,0.18,79127.0,79126.0,0.50306996]
[1744301381159,0.18,79127.0,79126.0,0.51761081]
[1744301381485,0.18,79127.0,79126.0,0.49421359]
[1744301381808,0.18,79127.0,79126.0,0.35276516]
[1744301382207,0.18,79127.0,79126.0,0.01276516]
[1744301382713,0.18,79127.0,79126.0,0.13967274]
[1744301383474,0.252662,79157.0,79150.0,0.012634]
[1744301383779,0.252676,79153.0,79148.0,0.252691]
[1744301383960,0.012632,79162.0,79156.0,0.265298]
[1744301384165,0.212632,79162.0,79151.0,0.012634]
[1744301384386,0.252653,79160.0,79155.0,0.252667]
[1744301384509,0.265299,79156.0,79147.0,0.265326]
[1744301384705,0.265325,79148.0,79147.0,0.00012716]
[1744301384929,0.16,79148.0,79147.0,0.26545516]
[1744301385347,0.16,79148.0,79147.0,0.39236274]
[1744301385549,0.16,79148.0,79147.0,0.00012716]
[1744301385719,0.16,79148.0,79147.0,0.01276116]
[1744301387024,0.16,79148.0,79147.0,0.13966874]
[1744301387279,0.172634,79148.0,79147.0,0.00012716]
[1744301387670,0.217734,79148.0,79147.0,0.00012716]
[1744301388075,0.265412,79122.0,79121.0,0.29164]
[1744301388270,0.265412,79122.0,79121.0,0.00042467]
[1744301388271,0.375412,79122.0,79121.0,0.00042467]
[1744301388655,0.122638,79122.0,79121.0,0.00042467]
[1744301390530,0.11,79122.0,79121.0,0.00042467]
[1744301390730,0.122638,79122.0,79121.0,0.00042467]
[1744301390934,0.11,79122.0,79121.0,0.00042467]
[1744301391371,0.122638,79122.0,79121.0,0.00042467]
[1744301391541,0.11,79122.0,79121.0,0.00042467]
[1744301391747,0.122638,79122.0,79121.0,0.00042467]
[1744301393700,0.30384558,79122.0,79121.0,0.00042467]
[1744301393920,0.30384558,79122.0,79105.0,0.0003348]
[1744301393921,0.265466,79106.0,79100.0,8e-07]
[1744301394128,0.017642,79101.0,79100.0,8e-07]
[1744301394442,0.182642,79101.0,79100.0,8e-07]
[1744301394914,0.182642,79101.0,79064.0,0.012647]
[1744301394915,0.265519,79090.0,79064.0,0.012647]
[1744301395104,0.265519,79090.0,79070.0,0.0129816]
[1744301395105,0.435519,79090.0,79070.0,0.0129816]
[1744301395293,0.435519,79090.0,79079.0,0.252909]
[1744301395470,0.435519,79090.0,79081.0,0.252902]
[1744301395671,0.435519,79090.0,79080.0,0.012645]
[1744301395870,0.435519,79090.0,79076.0,0.25292]
[1744301396101,0.435519,79090.0,79075.0,0.13191434]
[1744301396301,0.435519,79090.0,79089.0,0.00046191]
[1744301396561,0.61572658,79090.0,79089.0,0.00046191]
[1744301396951,0.483819,79090.0,79089.0,0.00046191]
[1744301397148,0.61572658,79090.0,79089.0,9.1e-07]
[1744301397623,0.12690758,79090.0,79089.0,9.1e-07]
[1744301397824,0.47242658,79090.0,79089.0,9.1e-07]
[1744301398027,0.82696743,79090.0,79089.0,9.1e-07]
[1744301398195,0.26558,79072.0,79071.0,0.002]
[1744301398394,0.44558,79072.0,79071.0,0.00212735]
[1744301398820,0.57248758,79072.0,79071.0,0.00212735]
[1744301399022,0.57248758,79072.0,79067.0,0.000335]
[1744301399023,0.265593,79068.0,79067.0,0.000335]
[1744301399222,0.265593,79068.0,79050.0,0.0001]
[1744301399223,0.265626,79058.0,79050.0,0.0001]
[1744301399426,0.18,79058.0,79057.0,0.00046199]
[1744301400048,0.192648,79058.0,79057.0,0.00046199]
[1744301401756,0.31955558,79058.0,79057.0,9.9e-07]
[1744301401961,0.31955558,79058.0,79046.0,3.9e-07]
[1744301401962,0.265654,79051.0,79046.0,3.9e-07]
[1744301402132,0.605664,79047.0,79041.0,7.8e-07]
[1744301402333,0.265731,79027.0,79026.0,3.4e-07]
[1744301402537,0.445731,79027.0,79026.0,3.4e-07]
[1744301402759,0.445731,79027.0,79025.0,0.0003352]
[1744301402760,0.012654,79026.0,79025.0,0.0003352]
[1744301402960,0.202654,79026.0,79025.0,0.0003352]
[1744301403165,0.32956158,79026.0,79025.0,0.0003352]
[1744301403402,0.32956158,79026.0,79011.0,0.002]
[1744301403403,0.265755,79020.0,79011.0,0.002]
[1744301403614,0.98266258,79020.0,79011.0,0.002]
[1744301403971,0.98278991,79020.0,79011.0,0.002]
[1744301404195,0.45588233,79020.0,79011.0,0.002]
[1744301404842,0.265782,79012.0,79011.0,0.002]
[1744301405104,0.58268958,79012.0,79011.0,0.002]
[1744301406494,0.455782,79012.0,79011.0,0.002]
[1744301406708,0.19,79012.0,79011.0,0.002]
[1744301406870,0.19,79012.0,79011.0,0.267785]
[1744301407008,0.19,79012.0,79011.0,0.002]
[1744301407214,0.202656,79012.0,79011.0,0.002]
[1744301407457,0.3013888,79012.0,79011.0,0.0021]
[1744301407731,0.202656,79012.0,79011.0,0.0021]
[1744301407918,0.32956358,79012.0,79011.0,0.0021]
[1744301408281,0.265817,79002.0,78987.0,0.0003336]
[1744301408498,0.012659,78994.0,78987.0,0.0003336]
[1744301408705,0.012659,78994.0,78981.0,0.002]
[1744301408706,0.265883,78982.0,78981.0,0.002]
[1744301408932,0.57279058,78982.0,78981.0,0.002]
[1744301409131,0.57279058,78982.0,78976.0,0.0003336]
[1744301409132,0.265899,78977.0,78976.0,6e-07]
[1744301409271,0.265899,78977.0,78951.0,0.002]
[1744301409272,0.253273,78966.0,78951.0,0.002]
[1744301409469,0.90284358,78966.0,78951.0,0.002]
[1744301410128,0.775936,78966.0,78951.0,0.002]
[1744301410690,0.265983,78952.0,78951.0,0.002]
[1744301410937,0.59289058,78952.0,78951.0,0.002]
[1744301411460,0.465983,78952.0,78951.0,0.002]
[1744301411808,0.20012715,78952.0,78951.0,0.002]
[1744301412011,0.21279215,78952.0,78951.0,0.002]
[1744301412403,0.21279215,78952.0,78951.0,0.0021]
[1744301412640,0.43950465,78952.0,78951.0,0.0021]
[1744301412843,0.33969973,78952.0,78951.0,0.0021]
[1744301413241,0.33969973,78952.0,78951.0,0.0022]
[1744301413849,0.33969973,78952.0,78951.0,0.0023]
[1744301414263,0.67969973,78952.0,78951.0,0.0023]
[1744301414435,0.81910602,78952.0,78951.0,0.0023]
[1744301414808,0.266023,78940.0,78939.0,0.000335]
[1744301414955,0.456023,78940.0,78939.0,0.000335]
[1744301415158,0.58293058,78940.0,78939.0,0.000335]
[1744301415411,0.92293058,78940.0,78939.0,1e-06]
[1744301417099,0.92293058,78940.0,78927.0,9e-07]
[1744301417100,0.606051,78932.0,78927.0,9e-07]
[1744301417275,0.606051,78932.0,78884.0,0.005]
[1744301417276,0.253508,78893.0,78884.0,0.005]
[1744301417618,0.253508,78893.0,78877.0,0.0462]
[1744301417619,0.25349,78899.0,78894.0,0.04999989]
[1744301417841,0.14,78899.0,78896.0,0.253494]
[1744301418057,0.14,78899.0,78898.0,0.012674]
[1744301418226,0.14,78899.0,78898.0,0.04999989]
[1744301418802,0.012674,78898.0,78891.0,0.002]
[1744301419025,0.266183,78894.0,78891.0,0.002]
[1744301419212,0.012675,78892.0,78891.0,0.002]
[1744301419436,0.19,78892.0,78891.0,0.002]
[1744301419631,0.202675,78892.0,78891.0,0.002]
[1744301420423,0.542675,78892.0,78891.0,0.002]
[1744301420623,0.66958258,78892.0,78891.0,0.002]
[1744301420821,0.79635823,78892.0,78891.0,0.002]
[1744301421020,0.26625,78873.0,78872.0,0.0003356]
[1744301421224,0.57315758,78873.0,78872.0,0.0003356]
[1744301421749,0.44625,78873.0,78872.0,0.0003356]
[1744301421952,0.29625,78873.0,78872.0,0.0003356]
[1744301422160,0.308928,78873.0,78872.0,0.0003356]
[1744301422360,0.30905496,78873.0,78872.0,0.0003356]
[1744301422561,0.01268,78862.0,78861.0,0.002]
[1744301422769,0.01268,78862.0,78860.0,8e-07]
[1744301422770,0.01268,78861.0,78860.0,8e-07]
[1744301423001,0.32948758,78861.0,78860.0,8e-07]
[1744301423199,0.72948758,78861.0,78860.0,8e-07]
[1744301423575,0.60258,78861.0,78860.0,8e-07]
[1744301424030,0.19,78861.0,78860.0,8e-07]
[1744301424253,0.20268,78861.0,78860.0,8e-07]
[1744301424916,0.20268,78861.0,78860.0,0.0001008]
[1744301426499,0.15958758,78861.0,78860.0,0.0001008]
[1744301426711,0.03268,78861.0,78860.0,0.0001008]
[1744301428152,0.02,78861.0,78860.0,0.0127808]
[1744301428355,0.02,78861.0,78860.0,0.2537138]
[1744301428540,0.02,78861.0,78860.0,0.0001008]
[1744301428839,0.02,78861.0,78860.0,0.19468827]
[1744301429067,0.02,78861.0,78860.0,0.05010069]
[1744301429483,0.02,78861.0,78860.0,0.19505087]
[1744301429698,0.02,78861.0,78860.0,0.05046329]
[1744301429866,0.02,78861.0,78860.0,0.19505087]
[1744301430070,0.02,78861.0,78860.0,0.53505087]
[1744301430210,0.266211,78885.0,78872.0,0.04999989]
[1744301430429,0.04012696,78873.0,78872.0,0.06267789]
[1744301431070,0.04012696,78873.0,78872.0,0.19458547]
[1744301431301,0.04012696,78873.0,78872.0,0.17690747]
[1744301431469,0.04012696,78873.0,78872.0,0.18190747]
[1744301431783,0.04012696,78873.0,78872.0,0.19458547]
[1744301432303,0.00012696,78873.0,78872.0,1.8425212]
[1744301432530,0.266128,78909.0,78897.0,0.266166]
[1744301432743,0.443459,78909.0,78897.0,0.012674]
[1744301432920,0.00496502,78908.0,78902.0,0.253478]
[1744301433071,0.17496502,78908.0,78902.0,0.012673]
[1744301433272,0.17496502,78908.0,78907.0,0.012673]
[1744301433476,0.17496502,78908.0,78906.0,0.05499989]
[1744301433706,0.17012743,78908.0,78906.0,0.32113689]
[1744301433861,0.17012743,78908.0,78907.0,0.04999989]
[1744301434067,0.17012743,78908.0,78907.0,0.06267289]
[1744301434499,0.17496502,78908.0,78907.0,0.04999989]
[1744301434927,0.17496502,78908.0,78886.0,0.005]
[1744301434928,0.253504,78894.0,78886.0,0.005]
[1744301435145,0.266229,78879.0,78878.0,0.04999989]
[1744301435346,0.08,78895.0,78889.0,0.012676]
[1744301435550,0.08,78895.0,78887.0,0.253527]
[1744301435551,0.00483759,78894.0,78890.0,0.005]
[1744301435751,0.4,78893.0,78890.0,0.005]
[1744301435956,0.58,78893.0,78890.0,0.005]
[1744301436162,0.253527,78887.0,78885.0,0.04999989]
[1744301436319,0.456203,78887.0,78885.0,0.04999989]
[1744301436536,0.44533352,78887.0,78882.0,0.04999989]
[1744301436756,0.44533352,78887.0,78879.0,0.04999989]
[1744301436757,0.253549,78880.0,78879.0,0.04999989]
[1744301436914,0.012677,78881.0,78880.0,0.04999989]
[1744301436915,0.266227,78881.0,78880.0,0.04999989]
[1744301437118,0.426227,78881.0,78880.0,0.04999989]
[1744301437355,0.16483759,78881.0,78880.0,0.04999989]
[1744301437776,0.266226,78880.0,78878.0,0.05042404]
[1744301437973,0.266226,78880.0,78879.0,0.04999989]
[1744301437974,0.16,78880.0,78879.0,0.04999989]
[1744301438213,0.012677,78879.0,78878.0,0.00042415]
[1744301438333,0.436229,78879.0,78878.0,0.00042415]
[1744301438734,0.44106659,78879.0,78878.0,0.00042415]
[1744301440251,0.56797417,78879.0,78878.0,0.00042415]
[1744301440483,0.45237932,78879.0,78878.0,0.00042415]
[1744301440689,0.85237932,78879.0,78878.0,0.00042415]
[1744301440886,0.9792869,78879.0,78878.0,0.00042415]
[1744301441233,1.3192869,78879.0,78878.0,0.00042415]
[1744301441600,1.35297365,78879.0,78878.0,1.5e-07]
[1744301442037,1.23711001,78879.0,78878.0,1.5e-07]
[1744301442331,1.22773587,78879.0,78878.0,1.5e-07]
[1744301442686,0.47500931,78879.0,78878.0,1.5e-07]
[1744301444403,0.20878031,78879.0,78878.0,1.5e-07]
[1744301444618,0.45237932,78879.0,78878.0,0.00036295]
[1744301444811,0.5792869,78879.0,78878.0,0.00036295]
[1744301444989,0.94183626,78879.0,78878.0,9.5e-07]
[1744301445208,0.9192869,78879.0,78878.0,9.5e-07]
[1744301445682,0.94200637,78879.0,78878.0,9.5e-07]
[1744301445815,0.26629,78861.0,78860.0,0.0002008]
[1744301446011,0.20131273,78861.0,78860.0,0.0002008]
[1744301446253,0.2240322,78861.0,78860.0,0.0002008]
[1744301446583,0.2240322,78861.0,78860.0,0.44840127]
[1744301446584,0.22886979,78861.0,78860.0,0.44840127]
[1744301446804,0.20131273,78861.0,78860.0,0.44840127]
[1744301446938,0.20131273,78861.0,78860.0,0.0002008]
[1744301447142,0.20131273,78861.0,78860.0,0.05020069]
[1744301448092,0.19,78861.0,78860.0,0.19478827]
[1744301448288,0.19,78861.0,78860.0,0.18210827]